fUSD/lending_fUSD_20250115
["ID","MTS","AMOUNT","RATE_DAILY","PERIOD"]
[348974794,1736909441563,-500.0,9.999e-05,2]
[348974795,1736909441573,-188.87226377,9.999e-05,2]
[348974796,1736909441582,-410.78338475,9.999e-05,2]
[348974802,1736909442984,-89.21661525,9.999e-05,2]
[348974803,1736909442993,-519.29878376,9.999e-05,2]
[348974804,1736909443002,-500.0,9.999e-05,2]
[348974805,1736909443011,-500.0,9.999e-05,2]
[348974806,1736909443021,-500.0,9.999e-05,2]
[348974807,1736909443030,-500.0,9.999e-05,2]
[348974809,1736909443039,-500.0,9.999e-05,2]
[348974811,1736909443048,-500.0,9.999e-05,2]
[348974813,1736909443057,-500.0,9.999e-05,2]
[348974814,1736909443066,-967.39,9.999e-05,2]
[348974815,1736909443075,-500.0,9.999e-05,2]
[348974816,1736909443085,-500.0,9.999e-05,2]
[348974817,1736909443094,-500.0,9.999e-05,2]
[348974818,1736909443103,-967.39,9.999e-05,2]
[348974819,1736909443112,-967.39,9.999e-05,2]
[348974820,1736909443121,-967.39,9.999e-05,2]
[348974821,1736909443130,-500.0,9.999e-05,2]
[348974822,1736909443139,-967.39,9.999e-05,2]
[348974823,1736909443148,-3573.80213284,0.0001,2]
[348974824,1736909443160,-6187.14578775,0.0001,2]
[348974825,1736909443176,-523.21180062,0.0001,2]
[348974826,1736909443187,-901.45554085,0.0001,2]
[348974836,1736909446338,-517.0655212,9.999e-05,2]
[348974837,1736909446348,-967.39,9.999e-05,2]
[348974838,1736909446358,-1050.945256,9.999e-05,2]
[348974839,1736909446367,-163.29582498,9.999e-05,2]
[348974840,1736909446376,-121.43224251,9.999e-05,2]
[348974841,1736909446387,-845.95775749,9.999e-05,2]
[348974842,1736909446398,-967.39,9.999e-05,2]
[348974844,1736909446408,-500.0,9.999e-05,2]
[348974846,1736909446417,-197822.74486273,0.0001,2]
[348974848,1736909446431,-501.44138975,0.0001,2]
[348974854,1736909881294,150.0,0.0001961,120]
[348974855,1736909890787,162.49,8.219e-05,2]
[348974856,1736909905636,154.5,0.0001961,120]
[348974885,1736910632288,-4000.0,8.668e-05,2]
[348974886,1736910632302,-610.967434,8.668e-05,2]
[348974887,1736910632311,-169.87,8.712e-05,2]
[348974888,1736910632322,-269.162566,8.72e-05,2]
[348974889,1736910632333,-2000.0,8.72e-05,2]
[348974890,1736910632532,-715.29015936,8.72e-05,2]
[348974891,1736910632545,-922.15075072,8.72e-05,2]
[348974892,1736910632558,-1742.6743333,8.72e-05,2]
[348974893,1736910632570,-1832.1416959,8.72e-05,2]
[348974894,1736910632583,-1859.46357618,8.72e-05,2]
[348974895,1736910632595,-2023.74389123,8.72e-05,2]
[348974896,1736910632606,-1555.48465078,8.72e-05,2]
[348974897,1736910632619,-387.645,8.72e-05,2]
[348974898,1736910632631,-1067.8899417,8.72e-05,2]
[348974940,1736910638141,-2631.60686444,8.72e-05,2]
[348974941,1736910638344,-1106.25974745,8.72e-05,2]
[348974942,1736910638356,-4706.46525906,8.72e-05,2]
[348974944,1736910640093,-351.28838847,8.72e-05,2]
[348974945,1736910640105,-728.73317541,8.72e-05,2]
[348974946,1736910640114,-127.72222842,8.84e-05,2]
[348974947,1736910640307,-666.28578068,8.84e-05,2]
[348974948,1736910640538,-568.87,8.84e-05,2]
[348974980,1736910646433,-627.2819909,8.84e-05,2]
[348974981,1736910646443,-283.71336898,8.868e-05,2]
[348974982,1736910646452,-13232.97308129,8.868e-05,2]
[348974983,1736910646462,-250.0,8.869e-05,2]
[348974984,1736910646472,-250.0,8.906e-05,2]
[348974985,1736910646483,-258.02,8.919e-05,2]
[348974986,1736910646492,-500.0,9e-05,2]
[348974987,1736910646502,-169.29,9.016e-05,2]
[348974988,1736910646512,-440.25,9.091e-05,2]
[348974989,1736910646521,-299.3,9.174e-05,2]
[348974990,1736910646531,-10403.0891,9.248e-05,2]
[348974991,1736910646540,-1792.17,9.348e-05,2]
[348974992,1736910646550,-500.0,9.5e-05,2]
[348974993,1736910646561,-250.0,9.536e-05,2]
[348974994,1736910646572,-3857.2,9.589e-05,2]
[348974995,1736910646581,-150.0,9.605e-05,2]
[348974996,1736910646591,-11085.0,9.606e-05,2]
[348974997,1736910646600,-2712.31640276,9.657e-05,2]
[348974998,1736910646611,-642.35,9.684e-05,2]
[348974999,1736910646620,-300.0,9.7e-05,3]
[348975000,1736910646630,-2081.525,9.799e-05,2]
[348975001,1736910646640,-3492.186,9.8e-05,2]
[348975002,1736910646652,-218.19,9.8e-05,2]
[348975003,1736910646664,-600.0,9.8e-05,3]
[348975005,1736910646673,-575.495,9.8e-05,2]
[348975007,1736910646683,-575.495,9.8e-05,2]
[348975008,1736910646693,-575.495,9.8e-05,2]
[348975009,1736910646702,-575.495,9.8e-05,2]
[348975010,1736910646711,-575.495,9.8e-05,2]
[348975011,1736910646720,-575.495,9.8e-05,2]
[348975012,1736910646730,-575.495,9.8e-05,2]
[348975013,1736910646739,-575.495,9.8e-05,2]
[348975014,1736910646748,-575.495,9.8e-05,2]
[348975015,1736910646757,-575.495,9.8e-05,2]
[348975016,1736910646767,-1500.0,9.898e-05,2]
[348975017,1736910646777,-2500.0,9.898e-05,2]
[348975018,1736910646786,-5159.2663,9.898e-05,2]
[348975019,1736910646796,-3524.0364,9.898e-05,2]
[348975020,1736910646806,-47043.5549,9.899e-05,2]
[348975021,1736910646815,-689.4759,9.899e-05,2]
[348975022,1736910646826,-1945.80781873,9.9e-05,2]
[348975023,1736910646837,-1000.0,9.9e-05,3]
[348975024,1736910646847,-500.0,9.997e-05,2]
[348975025,1736910646858,-500.0,9.997e-05,2]
[348975026,1736910646868,-273.38703066,9.997e-05,2]
[348975027,1736910646878,-500.0,9.997e-05,2]
[348975028,1736910646888,-526.38013258,9.997e-05,2]
[348975029,1736910646900,-500.0,9.997e-05,2]
[348975030,1736910646910,-500.0,9.997e-05,2]
[348975031,1736910646920,-500.0,9.997e-05,2]
[348975032,1736910646930,-500.0,9.997e-05,2]
[348975033,1736910646940,-500.0,9.997e-05,2]
[348975034,1736910646950,-500.0,9.997e-05,2]
[348975035,1736910646959,-500.0,9.997e-05,2]
[348975036,1736910646968,-500.0,9.997e-05,2]
[348975037,1736910646978,-500.0,9.997e-05,2]
[348975038,1736910646988,-519.97357485,9.997e-05,2]
[348975039,1736910646998,-500.0,9.997e-05,2]
[348975040,1736910647009,-545.33,9.997e-05,2]
[348975041,1736910647019,-229.99294399,9.997e-05,2]
[348975042,1736910647029,-464.21227651,9.997e-05,2]
[348975043,1736910647040,-500.0,9.997e-05,2]
[348975044,1736910647050,-500.0,9.997e-05,2]
[348975045,1736910647060,-539.94,9.997e-05,2]
[348975046,1736910647070,-500.0,9.997e-05,2]
[348975047,1736910647080,-500.0,9.997e-05,2]
[348975048,1736910647093,-500.0,9.997e-05,2]
[348975049,1736910647104,-500.0,9.997e-05,2]
[348975050,1736910647114,-500.0,9.997e-05,2]
[348975051,1736910647124,-500.0,9.997e-05,2]
[348975052,1736910647134,-500.0,9.997e-05,2]
[348975053,1736910647147,-1038.04,9.997e-05,2]
[348975054,1736910647157,-500.0,9.997e-05,2]
[348975055,1736910647166,-523.3,9.997e-05,2]
[348975056,1736910647176,-500.0,9.997e-05,2]
[348975057,1736910647185,-500.0,9.997e-05,2]
[348975058,1736910647195,-555.39438871,9.997e-05,2]
[348975059,1736910647205,-500.0,9.997e-05,2]
[348975060,1736910647214,-507.49523664,9.997e-05,2]
[348975061,1736910647224,-179.14426579,9.997e-05,2]
[348975062,1736910647237,-320.85573421,9.997e-05,2]
[348975063,1736910647247,-500.0,9.997e-05,2]
[348975064,1736910647256,-500.0,9.997e-05,2]
[348975065,1736910647265,-500.0,9.997e-05,2]
[348975066,1736910647275,-500.0,9.997e-05,2]
[348975067,1736910647284,-500.0,9.997e-05,2]
[348975068,1736910647294,-507.28091953,9.997e-05,2]
[348975069,1736910647303,-500.0,9.997e-05,2]
[348975070,1736910647313,-460.11334626,9.997e-05,2]
[348975071,1736910647325,-39.88665374,9.997e-05,2]
[348975072,1736910647334,-500.0,9.997e-05,2]
[348975073,1736910647344,-90671.87766812,9.998e-05,2]
[348975074,1736910647355,-52292.7128045,9.998e-05,2]
[348975075,1736910647364,-501.86731421,9.999e-05,2]
[348975076,1736910647374,-504.07538571,9.999e-05,2]
[348975077,1736910647384,-206.9879298,9.999e-05,2]
[348975078,1736910647394,-501.58760959,9.999e-05,2]
[348975079,1736910647405,-503.16937046,9.999e-05,2]
[348975080,1736910647415,-180.45777547,9.999e-05,2]
[348975081,1736910647424,-500.0,9.999e-05,2]
[348975082,1736910647434,-500.0,9.999e-05,2]
[348975083,1736910647443,-503.59718929,9.999e-05,2]
[348975084,1736910647453,-501.28103886,9.999e-05,2]
[348975085,1736910647463,-503.89325025,9.999e-05,2]
[348975086,1736910647473,-500.0,9.999e-05,2]
[348975087,1736910647483,-501.34531007,9.999e-05,2]
[348975088,1736910647493,-501.78646741,9.999e-05,2]
[348975089,1736910647502,-501.79146991,9.999e-05,2]
[348975090,1736910647513,-502.29284258,9.999e-05,2]
[348975091,1736910647523,-156.78365707,9.999e-05,2]
[348975092,1736910647533,-500.0,9.999e-05,2]
[348975093,1736910647542,-501.43511383,9.999e-05,2]
[348975094,1736910647552,-500.60017409,9.999e-05,2]
[348975095,1736910647561,-500.92177512,9.999e-05,2]
[348975096,1736910647571,-345.348565,9.999e-05,2]
[348975097,1736910647580,-504.29337071,9.999e-05,2]
[348975098,1736910647589,-501.1771683,9.999e-05,2]
[348975099,1736910647599,-500.71836863,9.999e-05,2]
[348975100,1736910647608,-500.67716167,9.999e-05,2]
[348975101,1736910647618,-501.5888895,9.999e-05,2]
[348975102,1736910647627,-500.0,9.999e-05,2]
[348975103,1736910647637,-501.28528056,9.999e-05,2]
[348975104,1736910647652,-350.315085,9.999e-05,2]
[348975105,1736910647663,-500.0,9.999e-05,2]
[348975106,1736910647672,-506.8373847,9.999e-05,2]
[348975107,1736910647682,-500.0,9.999e-05,2]
[348975108,1736910647692,-500.0,9.999e-05,2]
[348975109,1736910647701,-500.0,9.999e-05,2]
[348975110,1736910647711,-500.0,9.999e-05,2]
[348975111,1736910647720,-500.0,9.999e-05,2]
[348975112,1736910647730,-500.0,9.999e-05,2]
[348975113,1736910647739,-500.0,9.999e-05,2]
[348975114,1736910647748,-404.94204205,9.999e-05,2]
[348975115,1736910647758,-500.0,9.999e-05,2]
[348975116,1736910647767,-500.0,9.999e-05,2]
[348975117,1736910647778,-500.0,9.999e-05,2]
[348975118,1736910647789,-500.0,9.999e-05,2]
[348975119,1736910647800,-500.0,9.999e-05,2]
[348975120,1736910647809,-500.0,9.999e-05,2]
[348975121,1736910647819,-500.0,9.999e-05,2]
[348975122,1736910647830,-500.0,9.999e-05,2]
[348975123,1736910647841,-500.0,9.999e-05,2]
[348975124,1736910647850,-510.20652433,9.999e-05,2]
[348975125,1736910647859,-500.0,9.999e-05,2]
[348975126,1736910647870,-507.76437387,9.999e-05,2]
[348975127,1736910647881,-500.0,9.999e-05,2]
[348975128,1736910647891,-500.0,9.999e-05,2]
[348975129,1736910647903,-500.0,9.999e-05,2]
[348975130,1736910647913,-450.35322522,9.999e-05,2]
[348975131,1736910647922,-500.0,9.999e-05,2]
[348975132,1736910647931,-508.28074583,9.999e-05,2]
[348975133,1736910647942,-513.05876953,9.999e-05,2]
[348975134,1736910647952,-500.0,9.999e-05,2]
[348975135,1736910647962,-512.866867,9.999e-05,2]
[348975136,1736910647971,-500.0,9.999e-05,2]
[348975137,1736910647981,-500.0,9.999e-05,2]
[348975138,1736910647991,-500.0,9.999e-05,2]
[348975139,1736910648002,-500.0,9.999e-05,2]
[348975140,1736910648012,-500.0,9.999e-05,2]
[348975141,1736910648021,-500.0,9.999e-05,2]
[348975142,1736910648031,-555.47834573,9.999e-05,2]
[348975143,1736910648041,-500.0,9.999e-05,2]
[348975144,1736910648050,-500.0,9.999e-05,2]
[348975145,1736910648060,-500.0,9.999e-05,2]
[348975146,1736910648070,-500.0,9.999e-05,2]
[348975147,1736910648081,-500.0,9.999e-05,2]
[348975148,1736910648091,-648.05701888,9.999e-05,2]
[348975149,1736910648101,-500.0,9.999e-05,2]
[348975150,1736910648111,-511.55783253,9.999e-05,2]
[348975151,1736910648121,-500.0,9.999e-05,2]
[348975152,1736910648131,-500.0,9.999e-05,2]
[348975153,1736910648140,-500.0,9.999e-05,2]
[348975154,1736910648151,-500.0,9.999e-05,2]
[348975155,1736910648162,-500.0,9.999e-05,2]
[348975156,1736910648171,-158.89524387,9.999e-05,2]
[348975157,1736910648181,-507.39083102,9.999e-05,2]
[348975158,1736910648191,-500.0,9.999e-05,2]
[348975159,1736910648200,-500.0,9.999e-05,2]
[348975160,1736910648210,-500.0,9.999e-05,2]
[348975161,1736910648220,-500.0,9.999e-05,2]
[348975162,1736910648230,-500.0,9.999e-05,2]
[348975163,1736910648239,-500.0,9.999e-05,2]
[348975164,1736910648249,-500.0,9.999e-05,2]
[348975165,1736910648259,-500.0,9.999e-05,2]
[348975166,1736910648268,-500.0,9.999e-05,2]
[348975167,1736910648278,-581.4,9.999e-05,2]
[348975168,1736910648289,-500.0,9.999e-05,2]
[348975169,1736910648298,-500.0,9.999e-05,2]
[348975170,1736910648308,-500.0,9.999e-05,2]
[348975171,1736910648319,-509.23644076,9.999e-05,2]
[348975172,1736910648328,-509.07501837,9.999e-05,2]
[348975173,1736910648338,-511.80281151,9.999e-05,2]
[348975174,1736910648348,-500.0,9.999e-05,2]
[348975175,1736910648358,-500.0,9.999e-05,2]
[348975176,1736910648368,-500.0,9.999e-05,2]
[348975177,1736910648378,-510.50284603,9.999e-05,2]
[348975178,1736910648389,-500.0,9.999e-05,2]
[348975179,1736910648400,-500.0,9.999e-05,2]
[348975180,1736910648410,-500.0,9.999e-05,2]
[348975181,1736910648419,-500.0,9.999e-05,2]
[348975182,1736910648428,-500.0,9.999e-05,2]
[348975183,1736910648442,-500.0,9.999e-05,2]
[348975184,1736910648452,-500.0,9.999e-05,2]
[348975185,1736910648462,-500.0,9.999e-05,2]
[348975186,1736910648472,-500.0,9.999e-05,2]
[348975187,1736910648483,-500.0,9.999e-05,2]
[348975188,1736910648493,-500.0,9.999e-05,2]
[348975189,1736910648502,-500.0,9.999e-05,2]
[348975190,1736910648512,-500.0,9.999e-05,2]
[348975191,1736910648521,-506.06002109,9.999e-05,2]
[348975192,1736910648532,-500.0,9.999e-05,2]
[348975193,1736910648541,-500.0,9.999e-05,2]
[348975194,1736910648551,-500.0,9.999e-05,2]
[348975195,1736910648561,-500.0,9.999e-05,2]
[348975196,1736910648571,-500.0,9.999e-05,2]
[348975197,1736910648581,-500.0,9.999e-05,2]
[348975198,1736910648591,-500.0,9.999e-05,2]
[348975199,1736910648600,-500.0,9.999e-05,2]
[348975200,1736910648610,-500.0,9.999e-05,2]
[348975201,1736910648620,-500.0,9.999e-05,2]
[348975202,1736910648630,-500.0,9.999e-05,2]
[348975203,1736910648639,-504.20823161,9.999e-05,2]
[348975204,1736910648650,-500.0,9.999e-05,2]
[348975205,1736910648660,-500.0,9.999e-05,2]
[348975206,1736910648669,-500.0,9.999e-05,2]
[348975207,1736910648679,-509.21810692,9.999e-05,2]
[348975208,1736910648690,-907.9,9.999e-05,2]
[348975209,1736910648700,-500.0,9.999e-05,2]
[348975210,1736910648710,-500.0,9.999e-05,2]
[348975211,1736910648720,-500.0,9.999e-05,2]
[348975212,1736910648730,-500.0,9.999e-05,2]
[348975213,1736910648740,-500.0,9.999e-05,2]
[348975214,1736910648750,-500.0,9.999e-05,2]
[348975215,1736910648759,-500.0,9.999e-05,2]
[348975216,1736910648769,-163.29582498,9.999e-05,2]
[348975217,1736910648779,-500.0,9.999e-05,2]
[348975218,1736910648789,-500.0,9.999e-05,2]
[348975219,1736910648798,-500.0,9.999e-05,2]
[348975220,1736910648809,-500.0,9.999e-05,2]
[348975221,1736910648819,-500.0,9.999e-05,2]
[348975222,1736910648829,-500.0,9.999e-05,2]
[348975223,1736910648839,-170.22024814,9.999e-05,2]
[348975224,1736910648849,-500.0,9.999e-05,2]
[348975225,1736910648858,-500.0,9.999e-05,2]
[348975226,1736910648869,-500.0,9.999e-05,2]
[348975227,1736910648879,-500.0,9.999e-05,2]
[348975228,1736910648889,-500.0,9.999e-05,2]
[348975229,1736910648900,-500.0,9.999e-05,2]
[348975230,1736910648910,-500.0,9.999e-05,2]
[348975231,1736910648920,-500.0,9.999e-05,2]
[348975232,1736910648930,-500.0,9.999e-05,2]
[348975233,1736910648939,-500.0,9.999e-05,2]
[348975234,1736910648949,-500.0,9.999e-05,2]
[348975235,1736910648959,-501.11486936,9.999e-05,2]
[348975236,1736910648969,-500.0,9.999e-05,2]
[348975237,1736910648980,-503.74397187,9.999e-05,2]
[348975238,1736910648990,-500.0,9.999e-05,2]
[348975239,1736910649000,-500.0,9.999e-05,2]
[348975240,1736910649010,-500.0,9.999e-05,2]
[348975241,1736910649021,-500.0,9.999e-05,2]
[348975242,1736910649031,-500.0,9.999e-05,2]
[348975243,1736910649041,-500.0,9.999e-05,2]
[348975244,1736910649050,-500.0,9.999e-05,2]
[348975245,1736910649060,-500.0,9.999e-05,2]
[348975246,1736910649069,-500.0,9.999e-05,2]
[348975247,1736910649079,-628.93753395,9.999e-05,2]
[348975248,1736910649089,-500.19230905,9.999e-05,2]
[348975249,1736910649099,-500.0,9.999e-05,2]
[348975250,1736910649109,-500.0,9.999e-05,2]
[348975251,1736910649119,-500.0,9.999e-05,2]
[348975252,1736910649129,-500.0,9.999e-05,2]
[348975253,1736910649139,-500.0,9.999e-05,2]
[348975254,1736910649150,-500.0,9.999e-05,2]
[348975255,1736910649160,-500.0,9.999e-05,2]
[348975256,1736910649170,-500.0,9.999e-05,2]
[348975257,1736910649180,-500.0,9.999e-05,2]
[348975258,1736910649190,-500.0,9.999e-05,2]
[348975259,1736910649200,-500.0,9.999e-05,2]
[348975260,1736910649210,-500.0,9.999e-05,2]
[348975261,1736910649220,-494.06288017,9.999e-05,2]
[348975262,1736910649229,-500.0,9.999e-05,2]
[348975263,1736910649239,-500.0,9.999e-05,2]
[348975264,1736910649249,-500.0,9.999e-05,2]
[348975265,1736910649260,-500.0,9.999e-05,2]
[348975266,1736910649270,-500.0,9.999e-05,2]
[348975267,1736910649280,-500.0,9.999e-05,2]
[348975268,1736910649290,-214.72423406,9.999e-05,2]
[348975269,1736910649300,-500.0,9.999e-05,2]
[348975270,1736910649310,-500.0,9.999e-05,2]
[348975271,1736910649321,-500.0,9.999e-05,2]
[348975272,1736910649331,-500.0,9.999e-05,2]
[348975273,1736910649341,-500.0,9.999e-05,2]
[348975274,1736910649351,-500.0,9.999e-05,2]
[348975275,1736910649360,-500.0,9.999e-05,2]
[348975276,1736910649370,-506.85257755,9.999e-05,2]
[348975277,1736910649380,-500.0,9.999e-05,2]
[348975278,1736910649389,-500.0,9.999e-05,2]
[348975279,1736910649399,-500.0,9.999e-05,2]
[348975280,1736910649408,-500.0,9.999e-05,2]
[348975281,1736910649418,-500.0,9.999e-05,2]
[348975282,1736910649427,-500.0,9.999e-05,2]
[348975283,1736910649437,-510.2648009,9.999e-05,2]
[348975284,1736910649447,-500.0,9.999e-05,2]
[348975285,1736910649457,-720.02,9.999e-05,2]
[348975286,1736910649466,-500.0,9.999e-05,2]
[348975287,1736910649476,-500.0,9.999e-05,2]
[348975288,1736910649486,-500.0,9.999e-05,2]
[348975289,1736910649496,-500.0,9.999e-05,2]
[348975290,1736910649506,-500.0,9.999e-05,2]
[348975291,1736910649516,-500.0,9.999e-05,2]
[348975292,1736910649526,-500.0,9.999e-05,2]
[348975293,1736910649536,-500.0,9.999e-05,2]
[348975294,1736910649545,-500.0,9.999e-05,2]
[348975295,1736910649555,-500.0,9.999e-05,2]
[348975296,1736910649565,-508.33962627,9.999e-05,2]
[348975297,1736910649575,-500.0,9.999e-05,2]
[348975298,1736910649585,-1026.98,9.999e-05,2]
[348975299,1736910649797,-500.0,9.999e-05,2]
[348975300,1736910649811,-514.44142052,9.999e-05,2]
[348975301,1736910649821,-503.60331159,9.999e-05,2]
[348975302,1736910649832,-500.0,9.999e-05,2]
[348975303,1736910649842,-500.0,9.999e-05,2]
[348975304,1736910649852,-500.0,9.999e-05,2]
[348975305,1736910649862,-500.0,9.999e-05,2]
[348975306,1736910649875,-500.0,9.999e-05,2]
[348975307,1736910649885,-507.84241117,9.999e-05,2]
[348975308,1736910649898,-233.04352574,9.999e-05,2]
[348975309,1736910649908,-500.0,9.999e-05,2]
[348975310,1736910649920,-500.0,9.999e-05,2]
[348975311,1736910649930,-503.97491083,9.999e-05,2]
[348975312,1736910649941,-505.78662378,9.999e-05,2]
[348975313,1736910649950,-502.33620781,9.999e-05,2]
[348975314,1736910649961,-500.0,9.999e-05,2]
[348975315,1736910649971,-1000.0,9.999e-05,2]
[348975316,1736910649985,-500.0,9.999e-05,2]
[348975317,1736910649994,-500.0,9.999e-05,2]
[348975318,1736910650004,-690.3,9.999e-05,2]
[348975319,1736910650013,-500.0,9.999e-05,2]
[348975320,1736910650022,-690.3,9.999e-05,2]
[348975321,1736910650031,-690.3,9.999e-05,2]
[348975322,1736910650042,-500.0,9.999e-05,2]
[348975323,1736910650052,-690.3,9.999e-05,2]
[348975324,1736910650061,-500.0,9.999e-05,2]
[348975325,1736910650071,-690.3,9.999e-05,2]
[348975326,1736910650081,-500.0,9.999e-05,2]
[348975327,1736910650091,-690.3,9.999e-05,2]
[348975328,1736910650101,-690.3,9.999e-05,2]
[348975329,1736910650114,-690.3,9.999e-05,2]
[348975330,1736910650124,-500.0,9.999e-05,2]
[348975331,1736910650134,-690.3,9.999e-05,2]
[348975332,1736910650143,-500.0,9.999e-05,2]
[348975333,1736910650154,-690.3,9.999e-05,2]
[348975334,1736910650163,-690.3,9.999e-05,2]
[348975335,1736910650173,-502.88682529,9.999e-05,2]
[348975336,1736910650183,-500.0,9.999e-05,2]
[348975337,1736910650193,-501.79006743,9.999e-05,2]
[348975338,1736910650203,-500.0,9.999e-05,2]
[348975339,1736910650214,-500.0,9.999e-05,2]
[348975340,1736910650224,-505.98933499,9.999e-05,2]
[348975341,1736910650234,-500.0,9.999e-05,2]
[348975342,1736910650243,-500.0,9.999e-05,2]
[348975343,1736910650253,-500.0,9.999e-05,2]
[348975344,1736910650263,-500.0,9.999e-05,2]
[348975345,1736910650272,-211.93808611,9.999e-05,2]
[348975346,1736910650282,-500.0,9.999e-05,2]
[348975347,1736910650292,-502.06155298,9.999e-05,2]
[348975348,1736910650302,-503.57907068,9.999e-05,2]
[348975349,1736910650311,-501.37482202,9.999e-05,2]
[348975350,1736910650321,-506.88819602,9.999e-05,2]
[348975351,1736910650330,-500.0,9.999e-05,2]
[348975352,1736910650340,-485.2211318,9.999e-05,2]
[348975353,1736910650358,-14.7788682,9.999e-05,2]
[348975354,1736910650368,-500.0,9.999e-05,2]
[348975355,1736910650377,-500.0,9.999e-05,2]
[348975356,1736910650387,-500.0,9.999e-05,2]
[348975357,1736910650398,-502.52997223,9.999e-05,2]
[348975358,1736910650407,-500.0,9.999e-05,2]
[348975359,1736910650417,-506.83900769,9.999e-05,2]
[348975360,1736910650426,-504.29396058,9.999e-05,2]
[348975361,1736910650435,-500.0,9.999e-05,2]
[348975362,1736910650446,-500.0,9.999e-05,2]
[348975363,1736910650455,-500.0,9.999e-05,2]
[348975364,1736910650465,-57.79424631,9.999e-05,2]
[348975365,1736910650489,-443.50557692,9.999e-05,2]
[348975366,1736910650498,-438.95729888,9.999e-05,2]
[348975370,1736910942885,194.71,8.219e-05,2]
[348975373,1736911661142,200.0,8.219e-05,2]
[348975385,1736911832496,-1826.42,9.017e-05,2]
[348975386,1736911832506,-713.88,9.085e-05,2]
[348975387,1736911832516,-250.0,9.145e-05,2]
[348975388,1736911832526,-2888.55982857,9.145e-05,2]
[348975389,1736911832536,-300.0,9.172e-05,2]
[348975390,1736911832546,-1616.86558763,9.173e-05,2]
[348975391,1736911832556,-862.53183167,9.173e-05,2]
[348975392,1736911832570,-3262.74950934,9.173e-05,2]
[348975393,1736911832581,-2245.67865899,9.173e-05,2]
[348975394,1736911832591,-258.02,9.234e-05,2]
[348975395,1736911832601,-411.13,9.272e-05,2]
[348975396,1736911832611,-396.64,9.309e-05,2]
[348975397,1736911832621,-250.0,9.445e-05,2]
[348975398,1736911832630,-194.93,9.456e-05,2]
[348975399,1736911832640,-550.89,9.492e-05,2]
[348975400,1736911832650,-215.3616838,9.8e-05,2]
[348975401,1736911832659,-188.9713,9.898e-05,2]
[348975402,1736911832669,-4156.258144,9.9e-05,2]
[348975403,1736911832679,-414.28552322,9.918e-05,2]
[348975404,1736911832692,-86.71447678,9.918e-05,2]
[348975405,1736911832701,-500.0,9.973e-05,2]
[348975406,1736911832710,-200.0,9.99e-05,2]
[348975407,1736911832720,-164.0,9.99e-05,2]
[348975408,1736911832730,-164.0,9.99e-05,2]
[348975409,1736911832740,-164.0,9.99e-05,5]
[348975410,1736911832758,-2793.749,9.996e-05,2]
[348975411,1736911832768,-218.19078941,9.996e-05,2]
[348975412,1736911832779,-150.0,9.996e-05,2]
[348975413,1736911832794,-500.0,9.997e-05,2]
[348975414,1736911832803,-500.0,9.997e-05,2]
[348975415,1736911832813,-500.0,9.997e-05,2]
[348975416,1736911832822,-500.0,9.997e-05,2]
[348975417,1736911832831,-500.0,9.997e-05,2]
[348975418,1736911832840,-510.81829657,9.997e-05,2]
[348975419,1736911832850,-410.70773845,9.997e-05,2]
[348975420,1736911832862,-89.29226155,9.997e-05,2]
[348975421,1736911832871,-500.0,9.997e-05,2]
[348975422,1736911832880,-500.0,9.997e-05,2]
[348975423,1736911832890,-500.0,9.997e-05,2]
[348975424,1736911832899,-500.0,9.997e-05,2]
[348975425,1736911832909,-500.0,9.997e-05,2]
[348975426,1736911832918,-569.30060361,9.997e-05,2]
[348975427,1736911832928,-13.82605171,9.997e-05,2]
[348975428,1736911832962,-486.17394829,9.997e-05,2]
[348975429,1736911832972,-300.2681708,9.997e-05,2]
[348975430,1736911832984,-199.7318292,9.997e-05,2]
[348975431,1736911832993,-500.0,9.997e-05,2]
[348975432,1736911833003,-275.65304028,9.997e-05,2]
[348975433,1736911833234,-224.34695972,9.997e-05,2]
[348975434,1736911833245,-513.19541272,9.997e-05,2]
[348975436,1736911833254,-524.67922875,9.997e-05,2]
[348975438,1736911833264,-500.0,9.997e-05,2]
[348975440,1736911833274,-500.0,9.997e-05,2]